{"text_format":"1","workbook":"xlsx","n_sheets":15,"sheets":["Январь","Февраль","Март","Апрель","Май","Июнь","Июль","Август","Сентябрь","Октябрь","Ноябрь","Итог за Ноябрь","Декабрь","Итог за Декабрь","Итог за год"],"not_rendered":{"charts":4,"images":0,"macros":1,"external_links":0,"defined_names":0,"comments":0,"pivot_tables":6},"unopened":[],"bounds":{"document_bytes":16777216,"sheet_cells":100000,"rows_first":2000,"rows_last":500,"rows_between":2000,"halvings":0,"cell_chars":16384,"cell_head_chars":4096},"cells_cut":0,"cells_raw":0,"read":"whole","date_system":"1900"}

{"sheet":"Январь","index":0,"n_rows":60,"n_cols":15,"rows_kept":60,"cut":false,"hidden":false,"merged":[[1,11,2,11],[0,12,0,13],[0,0,0,11],[1,10,2,10]]}
[{"$f":"TODAY()","v":"2014-01-13"},null,null,null,null,null,null,null,null,null,null,null,"Итоги",null,{"$f":"ROUND(M2*100/SUM(M2:N2),2)/100","v":{"$error":"#DIV/0!"}}]
[null,null,null,null,null,null,null,null,null,null,"Результат","Проблемный город",{"$f":"COUNTIFS(K4:K104,\"+\")","v":0},{"$f":"COUNTIFS(K4:K104,\"-\")","v":0}]
[]
[null,null,null,null,null,null,null,null,null,null,null,"Самара"]
[null,null,null,null,null,null,null,null,null,null,null,"Чебоксары"]
[null,null,null,null,null,null,null,null,null,null,null,"Москва"]
[null,null,null,null,null,null,null,null,null,null,null,"Саранск"]
[null,null,null,null,null,null,null,null,null,null,null,"Калуга"]
[null,null,null,null,null,null,null,null,null,null,null,"Самара"]
[null,null,null,null,null,null,null,null,null,null,null,"Чебоксары"]
[null,null,null,null,null,null,null,null,null,null,null,"Москва"]
[null,null,null,null,null,null,null,null,null,null,null,"Екатеринбург"]
[null,null,null,null,null,null,null,null,null,null,null,"Чебоксары"]
[null,null,null,null,null,null,null,null,null,null,null,"Хабаровск"]
[null,null,null,null,null,null,null,null,null,null,null,"Самара"]
[null,null,null,null,null,null,null,null,null,null,null,"Чебоксары"]
[null,null,null,null,null,null,null,null,null,null,null,"Москва"]
[null,null,null,null,null,null,null,null,null,null,null,"Саранск"]
[null,null,null,null,null,null,null,null,null,null,null,"Калуга"]
[null,null,null,null,null,null,null,null,null,null,null,"Самара"]
[null,null,null,null,null,null,null,null,null,null,null,"Чебоксары"]
[null,null,null,null,null,null,null,null,null,null,null,"Москва"]
[null,null,null,null,null,null,null,null,null,null,null,"Екатеринбург"]
[null,null,null,null,null,null,null,null,null,null,null,"Чебоксары"]
[null,null,null,null,null,null,null,null,null,null,null,"Хабаровск"]
[null,null,null,null,null,null,null,null,null,null,null,"Самара"]
[null,null,null,null,null,null,null,null,null,null,null,"Чебоксары"]
[null,null,null,null,null,null,null,null,null,null,null,"Москва"]
[null,null,null,null,null,null,null,null,null,null,null,"Саранск"]
[null,null,null,null,null,null,null,null,null,null,null,"Калуга"]
[null,null,null,null,null,null,null,null,null,null,null,"Самара"]
[null,null,null,null,null,null,null,null,null,null,null,"Чебоксары"]
[null,null,null,null,null,null,null,null,null,null,null,"Москва"]
[null,null,null,null,null,null,null,null,null,null,null,"Екатеринбург"]
[null,null,null,null,null,null,null,null,null,null,null,"Чебоксары"]
[null,null,null,null,null,null,null,null,null,null,null,"Хабаровск"]
[null,null,null,null,null,null,null,null,null,null,null,"Самара"]
[null,null,null,null,null,null,null,null,null,null,null,"Чебоксары"]
[null,null,null,null,null,null,null,null,null,null,null,"Москва"]
[null,null,null,null,null,null,null,null,null,null,null,"Саранск"]
[null,null,null,null,null,null,null,null,null,null,null,"Калуга"]
[null,null,null,null,null,null,null,null,null,null,null,"Самара"]
[null,null,null,null,null,null,null,null,null,null,null,"Чебоксары"]
[null,null,null,null,null,null,null,null,null,null,null,"Москва"]
[null,null,null,null,null,null,null,null,null,null,null,"Екатеринбург"]
[null,null,null,null,null,null,null,null,null,null,null,"Чебоксары"]
[null,null,null,null,null,null,null,null,null,null,null,"Хабаровск"]
[null,null,null,null,null,null,null,null,null,null,null,"Самара"]
[null,null,null,null,null,null,null,null,null,null,null,"Чебоксары"]
[null,null,null,null,null,null,null,null,null,null,null,"Москва"]
[null,null,null,null,null,null,null,null,null,null,null,"Саранск"]
[null,null,null,null,null,null,null,null,null,null,null,"Калуга"]
[null,null,null,null,null,null,null,null,null,null,null,"Самара"]
[null,null,null,null,null,null,null,null,null,null,null,"Чебоксары"]
[null,null,null,null,null,null,null,null,null,null,null,"Москва"]
[null,null,null,null,null,null,null,null,null,null,null,"Екатеринбург"]
[null,null,null,null,null,null,null,null,null,null,null,"Чебоксары"]
[null,null,null,null,null,null,null,null,null,null,null,"Хабаровск"]
[null,null,null,null,null,null,null,null,null,null,null,"Самара"]
[null,null,null,null,null,null,null,null,null,null,null,"Чебоксары"]

{"sheet":"Февраль","index":1,"n_rows":69,"n_cols":15,"rows_kept":69,"cut":false,"hidden":false,"merged":[[1,10,2,10],[1,11,2,11],[0,0,0,11],[0,12,0,13]]}
[{"$f":"TODAY()","v":"2014-01-13"},null,null,null,null,null,null,null,null,null,null,null,"Итоги",null,{"$f":"ROUND(M2*100/SUM(M2:N2),2)/100","v":{"$error":"#DIV/0!"}}]
[null,null,null,null,null,null,null,null,null,null,"Результат","Проблемный город",{"$f":"COUNTIFS(K4:K104,\"+\")","v":0},{"$f":"COUNTIFS(K4:K104,\"-\")","v":0}]
[]
[]
[]
[]
[]
[]
[]
[]
[]
[]
[]
[]
[]
[]
[]
[]
[]
[]
[]
[]
[]
[]
[]
[]
[]
[]
[]
[]
[]
[]
[]
[]
[]
[]
[]
[]
[]
[]
[]
[]
[]
[]
[]
[]
[]
[]
[]
[]
[]
[]
[]
[]
[]
[]
[]
[]
[]
[]
[]
[null,null,null,null,null,null,null,null,null,null,null,"Самара"]
[null,null,null,null,null,null,null,null,null,null,null,"Чебоксары"]
[null,null,null,null,null,null,null,null,null,null,null,"Москва"]
[null,null,null,null,null,null,null,null,null,null,null,"Саранск"]
[null,null,null,null,null,null,null,null,null,null,null,"Калуга"]
[null,null,null,null,null,null,null,null,null,null,null,"Самара"]
[null,null,null,null,null,null,null,null,null,null,null,"Чебоксары"]
[null,null,null,null,null,null,null,null,null,null,null,"Москва"]

{"sheet":"Март","index":2,"n_rows":67,"n_cols":15,"rows_kept":67,"cut":false,"hidden":false,"merged":[[1,10,2,10],[1,11,2,11],[0,0,0,11],[0,12,0,13]]}
[{"$f":"TODAY()","v":"2014-01-13"},null,null,null,null,null,null,null,null,null,null,null,"Итоги",null,{"$f":"ROUND(M2*100/SUM(M2:N2),2)/100","v":1}]
[null,null,null,null,null,null,null,null,null,null,"Результат","Проблемный город",{"$f":"COUNTIFS(K4:K104,\"+\")","v":7},{"$f":"COUNTIFS(K4:K104,\"-\")","v":0}]
[]
[null,null,null,null,null,null,null,null,null,null,"+","Самара"]
[null,null,null,null,null,null,null,null,null,null,"+","Чебоксары"]
[null,null,null,null,null,null,null,null,null,null,"+","Москва"]
[null,null,null,null,null,null,null,null,null,null,"+","Саранск"]
[null,null,null,null,null,null,null,null,null,null,"+","Калуга"]
[null,null,null,null,null,null,null,null,null,null,"+","Самара"]
[null,null,null,null,null,null,null,null,null,null,"+","Чебоксары"]
[null,null,null,null,null,null,null,null,null,null,null,"Москва"]
[null,null,null,null,null,null,null,null,null,null,null,"Екатеринбург"]
[null,null,null,null,null,null,null,null,null,null,null,"Чебоксары"]
[null,null,null,null,null,null,null,null,null,null,null,"Хабаровск"]
[null,null,null,null,null,null,null,null,null,null,null,"Самара"]
[null,null,null,null,null,null,null,null,null,null,null,"Чебоксары"]
[null,null,null,null,null,null,null,null,null,null,null,"Москва"]
[null,null,null,null,null,null,null,null,null,null,null,"Саранск"]
[null,null,null,null,null,null,null,null,null,null,null,"Калуга"]
[null,null,null,null,null,null,null,null,null,null,null,"Самара"]
[null,null,null,null,null,null,null,null,null,null,null,"Чебоксары"]
[null,null,null,null,null,null,null,null,null,null,null,"Москва"]
[null,null,null,null,null,null,null,null,null,null,null,"Екатеринбург"]
[null,null,null,null,null,null,null,null,null,null,null,"Чебоксары"]
[null,null,null,null,null,null,null,null,null,null,null,"Хабаровск"]
[null,null,null,null,null,null,null,null,null,null,null,"Самара"]
[null,null,null,null,null,null,null,null,null,null,null,"Чебоксары"]
[null,null,null,null,null,null,null,null,null,null,null,"Москва"]
[null,null,null,null,null,null,null,null,null,null,null,"Саранск"]
[null,null,null,null,null,null,null,null,null,null,null,"Калуга"]
[null,null,null,null,null,null,null,null,null,null,null,"Самара"]
[null,null,null,null,null,null,null,null,null,null,null,"Чебоксары"]
[null,null,null,null,null,null,null,null,null,null,null,"Москва"]
[null,null,null,null,null,null,null,null,null,null,null,"Екатеринбург"]
[null,null,null,null,null,null,null,null,null,null,null,"Чебоксары"]
[null,null,null,null,null,null,null,null,null,null,null,"Хабаровск"]
[null,null,null,null,null,null,null,null,null,null,null,"Самара"]
[null,null,null,null,null,null,null,null,null,null,null,"Чебоксары"]
[null,null,null,null,null,null,null,null,null,null,null,"Москва"]
[null,null,null,null,null,null,null,null,null,null,null,"Саранск"]
[null,null,null,null,null,null,null,null,null,null,null,"Калуга"]
[null,null,null,null,null,null,null,null,null,null,null,"Самара"]
[null,null,null,null,null,null,null,null,null,null,null,"Чебоксары"]
[null,null,null,null,null,null,null,null,null,null,null,"Москва"]
[null,null,null,null,null,null,null,null,null,null,null,"Екатеринбург"]
[null,null,null,null,null,null,null,null,null,null,null,"Чебоксары"]
[null,null,null,null,null,null,null,null,null,null,null,"Хабаровск"]
[null,null,null,null,null,null,null,null,null,null,null,"Самара"]
[null,null,null,null,null,null,null,null,null,null,null,"Чебоксары"]
[null,null,null,null,null,null,null,null,null,null,null,"Москва"]
[null,null,null,null,null,null,null,null,null,null,null,"Саранск"]
[null,null,null,null,null,null,null,null,null,null,null,"Калуга"]
[null,null,null,null,null,null,null,null,null,null,null,"Самара"]
[null,null,null,null,null,null,null,null,null,null,null,"Чебоксары"]
[null,null,null,null,null,null,null,null,null,null,null,"Москва"]
[null,null,null,null,null,null,null,null,null,null,null,"Екатеринбург"]
[null,null,null,null,null,null,null,null,null,null,null,"Чебоксары"]
[null,null,null,null,null,null,null,null,null,null,null,"Хабаровск"]
[null,null,null,null,null,null,null,null,null,null,null,"Самара"]
[null,null,null,null,null,null,null,null,null,null,null,"Чебоксары"]
[null,null,null,null,null,null,null,null,null,null,null,"Москва"]
[null,null,null,null,null,null,null,null,null,null,null,"Саранск"]
[null,null,null,null,null,null,null,null,null,null,null,"Калуга"]
[null,null,null,null,null,null,null,null,null,null,null,"Самара"]
[null,null,null,null,null,null,null,null,null,null,null,"Чебоксары"]
[null,null,null,null,null,null,null,null,null,null,null,"Москва"]
[null,null,null,null,null,null,null,null,null,null,null,"Екатеринбург"]

{"sheet":"Апрель","index":3,"n_rows":73,"n_cols":15,"rows_kept":73,"cut":false,"hidden":false,"merged":[[1,10,2,10],[1,11,2,11],[0,0,0,11],[0,12,0,13]]}
[{"$f":"TODAY()","v":"2014-01-13"},null,null,null,null,null,null,null,null,null,null,null,"Итоги",null,{"$f":"ROUND(M2*100/SUM(M2:N2),2)/100","v":{"$error":"#DIV/0!"}}]
[null,null,null,null,null,null,null,null,null,null,"Результат","Проблемный город",{"$f":"COUNTIFS(K4:K104,\"+\")","v":0},{"$f":"COUNTIFS(K4:K104,\"-\")","v":0}]
[]
[null,null,null,null,null,null,null,null,null,null,null,"Самара"]
[null,null,null,null,null,null,null,null,null,null,null,"Чебоксары"]
[null,null,null,null,null,null,null,null,null,null,null,"Москва"]
[null,null,null,null,null,null,null,null,null,null,null,"Саранск"]
[null,null,null,null,null,null,null,null,null,null,null,"Калуга"]
[null,null,null,null,null,null,null,null,null,null,null,"Самара"]
[null,null,null,null,null,null,null,null,null,null,null,"Чебоксары"]
[null,null,null,null,null,null,null,null,null,null,null,"Москва"]
[null,null,null,null,null,null,null,null,null,null,null,"Екатеринбург"]
[null,null,null,null,null,null,null,null,null,null,null,"Чебоксары"]
[null,null,null,null,null,null,null,null,null,null,null,"Хабаровск"]
[null,null,null,null,null,null,null,null,null,null,null,"Самара"]
[null,null,null,null,null,null,null,null,null,null,null,"Чебоксары"]
[null,null,null,null,null,null,null,null,null,null,null,"Москва"]
[null,null,null,null,null,null,null,null,null,null,null,"Саранск"]
[null,null,null,null,null,null,null,null,null,null,null,"Калуга"]
[null,null,null,null,null,null,null,null,null,null,null,"Самара"]
[null,null,null,null,null,null,null,null,null,null,null,"Чебоксары"]
[null,null,null,null,null,null,null,null,null,null,null,"Москва"]
[null,null,null,null,null,null,null,null,null,null,null,"Екатеринбург"]
[null,null,null,null,null,null,null,null,null,null,null,"Чебоксары"]
[null,null,null,null,null,null,null,null,null,null,null,"Хабаровск"]
[null,null,null,null,null,null,null,null,null,null,null,"Самара"]
[null,null,null,null,null,null,null,null,null,null,null,"Чебоксары"]
[null,null,null,null,null,null,null,null,null,null,null,"Москва"]
[null,null,null,null,null,null,null,null,null,null,null,"Саранск"]
[null,null,null,null,null,null,null,null,null,null,null,"Калуга"]
[null,null,null,null,null,null,null,null,null,null,null,"Самара"]
[null,null,null,null,null,null,null,null,null,null,null,"Чебоксары"]
[null,null,null,null,null,null,null,null,null,null,null,"Москва"]
[null,null,null,null,null,null,null,null,null,null,null,"Екатеринбург"]
[null,null,null,null,null,null,null,null,null,null,null,"Чебоксары"]
[null,null,null,null,null,null,null,null,null,null,null,"Хабаровск"]
[null,null,null,null,null,null,null,null,null,null,null,"Самара"]
[null,null,null,null,null,null,null,null,null,null,null,"Чебоксары"]
[null,null,null,null,null,null,null,null,null,null,null,"Москва"]
[null,null,null,null,null,null,null,null,null,null,null,"Саранск"]
[null,null,null,null,null,null,null,null,null,null,null,"Калуга"]
[null,null,null,null,null,null,null,null,null,null,null,"Самара"]
[null,null,null,null,null,null,null,null,null,null,null,"Чебоксары"]
[null,null,null,null,null,null,null,null,null,null,null,"Москва"]
[null,null,null,null,null,null,null,null,null,null,null,"Екатеринбург"]
[null,null,null,null,null,null,null,null,null,null,null,"Чебоксары"]
[null,null,null,null,null,null,null,null,null,null,null,"Хабаровск"]
[null,null,null,null,null,null,null,null,null,null,null,"Самара"]
[null,null,null,null,null,null,null,null,null,null,null,"Чебоксары"]
[null,null,null,null,null,null,null,null,null,null,null,"Москва"]
[null,null,null,null,null,null,null,null,null,null,null,"Саранск"]
[null,null,null,null,null,null,null,null,null,null,null,"Калуга"]
[null,null,null,null,null,null,null,null,null,null,null,"Самара"]
[null,null,null,null,null,null,null,null,null,null,null,"Чебоксары"]
[null,null,null,null,null,null,null,null,null,null,null,"Москва"]
[null,null,null,null,null,null,null,null,null,null,null,"Екатеринбург"]
[null,null,null,null,null,null,null,null,null,null,null,"Чебоксары"]
[null,null,null,null,null,null,null,null,null,null,null,"Хабаровск"]
[null,null,null,null,null,null,null,null,null,null,null,"Самара"]
[null,null,null,null,null,null,null,null,null,null,null,"Чебоксары"]
[null,null,null,null,null,null,null,null,null,null,null,"Москва"]
[null,null,null,null,null,null,null,null,null,null,null,"Саранск"]
[null,null,null,null,null,null,null,null,null,null,null,"Калуга"]
[null,null,null,null,null,null,null,null,null,null,null,"Самара"]
[null,null,null,null,null,null,null,null,null,null,null,"Чебоксары"]
[null,null,null,null,null,null,null,null,null,null,null,"Москва"]
[null,null,null,null,null,null,null,null,null,null,null,"Екатеринбург"]
[null,null,null,null,null,null,null,null,null,null,null,"Чебоксары"]
[null,null,null,null,null,null,null,null,null,null,null,"Хабаровск"]
[null,null,null,null,null,null,null,null,null,null,null,"Самара"]
[null,null,null,null,null,null,null,null,null,null,null,"Чебоксары"]
[null,null,null,null,null,null,null,null,null,null,null,"Москва"]
[null,null,null,null,null,null,null,null,null,null,null,"Саранск"]

{"sheet":"Май","index":4,"n_rows":53,"n_cols":15,"rows_kept":53,"cut":false,"hidden":false,"merged":[[1,10,2,10],[1,11,2,11],[0,0,0,11],[0,12,0,13]]}
[{"$f":"TODAY()","v":"2014-01-13"},null,null,null,null,null,null,null,null,null,null,null,"Итоги",null,{"$f":"ROUND(M2*100/SUM(M2:N2),2)/100","v":{"$error":"#DIV/0!"}}]
[null,null,null,null,null,null,null,null,null,null,"Результат","Проблемный город",{"$f":"COUNTIFS(K4:K104,\"+\")","v":0},{"$f":"COUNTIFS(K4:K104,\"-\")","v":0}]
[]
[null,null,null,null,null,null,null,null,null,null,null,"Самара"]
[null,null,null,null,null,null,null,null,null,null,null,"Чебоксары"]
[null,null,null,null,null,null,null,null,null,null,null,"Москва"]
[null,null,null,null,null,null,null,null,null,null,null,"Саранск"]
[null,null,null,null,null,null,null,null,null,null,null,"Калуга"]
[null,null,null,null,null,null,null,null,null,null,null,"Самара"]
[null,null,null,null,null,null,null,null,null,null,null,"Чебоксары"]
[null,null,null,null,null,null,null,null,null,null,null,"Москва"]
[null,null,null,null,null,null,null,null,null,null,null,"Екатеринбург"]
[null,null,null,null,null,null,null,null,null,null,null,"Чебоксары"]
[null,null,null,null,null,null,null,null,null,null,null,"Хабаровск"]
[null,null,null,null,null,null,null,null,null,null,null,"Самара"]
[null,null,null,null,null,null,null,null,null,null,null,"Чебоксары"]
[null,null,null,null,null,null,null,null,null,null,null,"Москва"]
[null,null,null,null,null,null,null,null,null,null,null,"Саранск"]
[null,null,null,null,null,null,null,null,null,null,null,"Калуга"]
[null,null,null,null,null,null,null,null,null,null,null,"Самара"]
[null,null,null,null,null,null,null,null,null,null,null,"Чебоксары"]
[null,null,null,null,null,null,null,null,null,null,null,"Москва"]
[null,null,null,null,null,null,null,null,null,null,null,"Екатеринбург"]
[null,null,null,null,null,null,null,null,null,null,null,"Чебоксары"]
[null,null,null,null,null,null,null,null,null,null,null,"Хабаровск"]
[null,null,null,null,null,null,null,null,null,null,null,"Самара"]
[null,null,null,null,null,null,null,null,null,null,null,"Чебоксары"]
[null,null,null,null,null,null,null,null,null,null,null,"Москва"]
[null,null,null,null,null,null,null,null,null,null,null,"Саранск"]
[null,null,null,null,null,null,null,null,null,null,null,"Калуга"]
[null,null,null,null,null,null,null,null,null,null,null,"Самара"]
[null,null,null,null,null,null,null,null,null,null,null,"Чебоксары"]
[null,null,null,null,null,null,null,null,null,null,null,"Москва"]
[null,null,null,null,null,null,null,null,null,null,null,"Екатеринбург"]
[null,null,null,null,null,null,null,null,null,null,null,"Чебоксары"]
[null,null,null,null,null,null,null,null,null,null,null,"Хабаровск"]
[null,null,null,null,null,null,null,null,null,null,null,"Самара"]
[null,null,null,null,null,null,null,null,null,null,null,"Чебоксары"]
[null,null,null,null,null,null,null,null,null,null,null,"Москва"]
[null,null,null,null,null,null,null,null,null,null,null,"Саранск"]
[null,null,null,null,null,null,null,null,null,null,null,"Калуга"]
[null,null,null,null,null,null,null,null,null,null,null,"Самара"]
[null,null,null,null,null,null,null,null,null,null,null,"Чебоксары"]
[null,null,null,null,null,null,null,null,null,null,null,"Москва"]
[null,null,null,null,null,null,null,null,null,null,null,"Екатеринбург"]
[null,null,null,null,null,null,null,null,null,null,null,"Чебоксары"]
[null,null,null,null,null,null,null,null,null,null,null,"Хабаровск"]
[null,null,null,null,null,null,null,null,null,null,null,"Самара"]
[null,null,null,null,null,null,null,null,null,null,null,"Чебоксары"]
[null,null,null,null,null,null,null,null,null,null,null,"Москва"]
[null,null,null,null,null,null,null,null,null,null,null,"Саранск"]
[null,null,null,null,null,null,null,null,null,null,null,"Калуга"]
[null,null,null,null,null,null,null,null,null,null,null,"Самара"]

{"sheet":"Июнь","index":5,"n_rows":44,"n_cols":15,"rows_kept":44,"cut":false,"hidden":false,"merged":[[1,10,2,10],[1,11,2,11],[0,0,0,11],[0,12,0,13]]}
[{"$f":"TODAY()","v":"2014-01-13"},null,null,null,null,null,null,null,null,null,null,null,"Итоги",null,{"$f":"ROUND(M2*100/SUM(M2:N2),2)/100","v":{"$error":"#DIV/0!"}}]
[null,null,null,null,null,null,null,null,null,null,"Результат","Проблемный город",{"$f":"COUNTIFS(K4:K104,\"+\")","v":0},{"$f":"COUNTIFS(K4:K104,\"-\")","v":0}]
[]
[null,null,null,null,null,null,null,null,null,null,null,"Самара"]
[null,null,null,null,null,null,null,null,null,null,null,"Чебоксары"]
[null,null,null,null,null,null,null,null,null,null,null,"Москва"]
[null,null,null,null,null,null,null,null,null,null,null,"Саранск"]
[null,null,null,null,null,null,null,null,null,null,null,"Калуга"]
[null,null,null,null,null,null,null,null,null,null,null,"Самара"]
[null,null,null,null,null,null,null,null,null,null,null,"Чебоксары"]
[null,null,null,null,null,null,null,null,null,null,null,"Москва"]
[null,null,null,null,null,null,null,null,null,null,null,"Екатеринбург"]
[null,null,null,null,null,null,null,null,null,null,null,"Чебоксары"]
[null,null,null,null,null,null,null,null,null,null,null,"Хабаровск"]
[null,null,null,null,null,null,null,null,null,null,null,"Самара"]
[null,null,null,null,null,null,null,null,null,null,null,"Чебоксары"]
[null,null,null,null,null,null,null,null,null,null,null,"Москва"]
[null,null,null,null,null,null,null,null,null,null,null,"Саранск"]
[null,null,null,null,null,null,null,null,null,null,null,"Калуга"]
[null,null,null,null,null,null,null,null,null,null,null,"Самара"]
[null,null,null,null,null,null,null,null,null,null,null,"Чебоксары"]
[null,null,null,null,null,null,null,null,null,null,null,"Москва"]
[null,null,null,null,null,null,null,null,null,null,null,"Екатеринбург"]
[null,null,null,null,null,null,null,null,null,null,null,"Чебоксары"]
[null,null,null,null,null,null,null,null,null,null,null,"Хабаровск"]
[null,null,null,null,null,null,null,null,null,null,null,"Самара"]
[null,null,null,null,null,null,null,null,null,null,null,"Чебоксары"]
[null,null,null,null,null,null,null,null,null,null,null,"Москва"]
[null,null,null,null,null,null,null,null,null,null,null,"Саранск"]
[null,null,null,null,null,null,null,null,null,null,null,"Калуга"]
[null,null,null,null,null,null,null,null,null,null,null,"Самара"]
[null,null,null,null,null,null,null,null,null,null,null,"Чебоксары"]
[null,null,null,null,null,null,null,null,null,null,null,"Москва"]
[null,null,null,null,null,null,null,null,null,null,null,"Екатеринбург"]
[null,null,null,null,null,null,null,null,null,null,null,"Чебоксары"]
[null,null,null,null,null,null,null,null,null,null,null,"Хабаровск"]
[null,null,null,null,null,null,null,null,null,null,null,"Самара"]
[null,null,null,null,null,null,null,null,null,null,null,"Чебоксары"]
[null,null,null,null,null,null,null,null,null,null,null,"Москва"]
[null,null,null,null,null,null,null,null,null,null,null,"Саранск"]
[null,null,null,null,null,null,null,null,null,null,null,"Калуга"]
[null,null,null,null,null,null,null,null,null,null,null,"Самара"]
[null,null,null,null,null,null,null,null,null,null,null,"Чебоксары"]
[null,null,null,null,null,null,null,null,null,null,null,"Москва"]

{"sheet":"Июль","index":6,"n_rows":45,"n_cols":15,"rows_kept":45,"cut":false,"hidden":false,"merged":[[1,10,2,10],[1,11,2,11],[0,0,0,11],[0,12,0,13]]}
[{"$f":"TODAY()","v":"2014-01-13"},null,null,null,null,null,null,null,null,null,null,null,"Итоги",null,{"$f":"ROUND(M2*100/SUM(M2:N2),2)/100","v":{"$error":"#DIV/0!"}}]
[null,null,null,null,null,null,null,null,null,null,"Результат","Проблемный город",{"$f":"COUNTIFS(K4:K104,\"+\")","v":0},{"$f":"COUNTIFS(K4:K104,\"-\")","v":0}]
[]
[null,null,null,null,null,null,null,null,null,null,null,"Самара"]
[null,null,null,null,null,null,null,null,null,null,null,"Чебоксары"]
[null,null,null,null,null,null,null,null,null,null,null,"Москва"]
[null,null,null,null,null,null,null,null,null,null,null,"Саранск"]
[null,null,null,null,null,null,null,null,null,null,null,"Калуга"]
[null,null,null,null,null,null,null,null,null,null,null,"Самара"]
[null,null,null,null,null,null,null,null,null,null,null,"Чебоксары"]
[null,null,null,null,null,null,null,null,null,null,null,"Москва"]
[null,null,null,null,null,null,null,null,null,null,null,"Екатеринбург"]
[null,null,null,null,null,null,null,null,null,null,null,"Чебоксары"]
[null,null,null,null,null,null,null,null,null,null,null,"Хабаровск"]
[null,null,null,null,null,null,null,null,null,null,null,"Самара"]
[null,null,null,null,null,null,null,null,null,null,null,"Чебоксары"]
[null,null,null,null,null,null,null,null,null,null,null,"Москва"]
[null,null,null,null,null,null,null,null,null,null,null,"Саранск"]
[null,null,null,null,null,null,null,null,null,null,null,"Калуга"]
[null,null,null,null,null,null,null,null,null,null,null,"Самара"]
[null,null,null,null,null,null,null,null,null,null,null,"Чебоксары"]
[null,null,null,null,null,null,null,null,null,null,null,"Москва"]
[null,null,null,null,null,null,null,null,null,null,null,"Екатеринбург"]
[null,null,null,null,null,null,null,null,null,null,null,"Чебоксары"]
[null,null,null,null,null,null,null,null,null,null,null,"Хабаровск"]
[null,null,null,null,null,null,null,null,null,null,null,"Самара"]
[null,null,null,null,null,null,null,null,null,null,null,"Чебоксары"]
[null,null,null,null,null,null,null,null,null,null,null,"Москва"]
[null,null,null,null,null,null,null,null,null,null,null,"Саранск"]
[null,null,null,null,null,null,null,null,null,null,null,"Калуга"]
[null,null,null,null,null,null,null,null,null,null,null,"Самара"]
[null,null,null,null,null,null,null,null,null,null,null,"Чебоксары"]
[null,null,null,null,null,null,null,null,null,null,null,"Москва"]
[null,null,null,null,null,null,null,null,null,null,null,"Екатеринбург"]
[null,null,null,null,null,null,null,null,null,null,null,"Чебоксары"]
[null,null,null,null,null,null,null,null,null,null,null,"Хабаровск"]
[null,null,null,null,null,null,null,null,null,null,null,"Самара"]
[null,null,null,null,null,null,null,null,null,null,null,"Чебоксары"]
[null,null,null,null,null,null,null,null,null,null,null,"Москва"]
[null,null,null,null,null,null,null,null,null,null,null,"Саранск"]
[null,null,null,null,null,null,null,null,null,null,null,"Калуга"]
[null,null,null,null,null,null,null,null,null,null,null,"Самара"]
[null,null,null,null,null,null,null,null,null,null,null,"Чебоксары"]
[]
[null,null,null,null,null,null,null,null,null,null,null,"Екатеринбург"]

{"sheet":"Август","index":7,"n_rows":104,"n_cols":15,"rows_kept":104,"cut":false,"hidden":false,"merged":[[1,10,2,10],[1,11,2,11],[0,0,0,11],[0,12,0,13]]}
[{"$f":"TODAY()","v":"2014-01-13"},null,null,null,null,null,null,null,null,null,null,null,"Итоги",null,{"$f":"ROUND(M2*100/SUM(M2:N2),2)/100","v":{"$error":"#DIV/0!"}}]
[null,null,null,null,null,null,null,null,null,null,"Результат","Проблемный город",{"$f":"COUNTIFS(K4:K104,\"+\")","v":0},{"$f":"COUNTIFS(K4:K104,\"-\")","v":0}]
[]
[null,null,null,null,null,null,null,null,null,null,null,"Самара"]
[null,null,null,null,null,null,null,null,null,null,null,"Чебоксары"]
[null,null,null,null,null,null,null,null,null,null,null,"Москва"]
[null,null,null,null,null,null,null,null,null,null,null,"Саранск"]
[null,null,null,null,null,null,null,null,null,null,null,"Калуга"]
[null,null,null,null,null,null,null,null,null,null,null,"Самара"]
[null,null,null,null,null,null,null,null,null,null,null,"Чебоксары"]
[null,null,null,null,null,null,null,null,null,null,null,"Москва"]
[null,null,null,null,null,null,null,null,null,null,null,"Екатеринбург"]
[null,null,null,null,null,null,null,null,null,null,null,"Чебоксары"]
[null,null,null,null,null,null,null,null,null,null,null,"Хабаровск"]
[null,null,null,null,null,null,null,null,null,null,null,"Самара"]
[null,null,null,null,null,null,null,null,null,null,null,"Чебоксары"]
[null,null,null,null,null,null,null,null,null,null,null,"Москва"]
[null,null,null,null,null,null,null,null,null,null,null,"Саранск"]
[null,null,null,null,null,null,null,null,null,null,null,"Калуга"]
[null,null,null,null,null,null,null,null,null,null,null,"Самара"]
[null,null,null,null,null,null,null,null,null,null,null,"Чебоксары"]
[null,null,null,null,null,null,null,null,null,null,null,"Москва"]
[null,null,null,null,null,null,null,null,null,null,null,"Екатеринбург"]
[null,null,null,null,null,null,null,null,null,null,null,"Чебоксары"]
[null,null,null,null,null,null,null,null,null,null,null,"Хабаровск"]
[null,null,null,null,null,null,null,null,null,null,null,"Самара"]
[null,null,null,null,null,null,null,null,null,null,null,"Чебоксары"]
[null,null,null,null,null,null,null,null,null,null,null,"Москва"]
[null,null,null,null,null,null,null,null,null,null,null,"Саранск"]
[null,null,null,null,null,null,null,null,null,null,null,"Калуга"]
[null,null,null,null,null,null,null,null,null,null,null,"Самара"]
[null,null,null,null,null,null,null,null,null,null,null,"Чебоксары"]
[null,null,null,null,null,null,null,null,null,null,null,"Москва"]
[null,null,null,null,null,null,null,null,null,null,null,"Екатеринбург"]
[null,null,null,null,null,null,null,null,null,null,null,"Чебоксары"]
[null,null,null,null,null,null,null,null,null,null,null,"Хабаровск"]
[null,null,null,null,null,null,null,null,null,null,null,"Самара"]
[null,null,null,null,null,null,null,null,null,null,null,"Чебоксары"]
[null,null,null,null,null,null,null,null,null,null,null,"Москва"]
[null,null,null,null,null,null,null,null,null,null,null,"Саранск"]
[null,null,null,null,null,null,null,null,null,null,null,"Калуга"]
[null,null,null,null,null,null,null,null,null,null,null,"Самара"]
[null,null,null,null,null,null,null,null,null,null,null,"Чебоксары"]
[null,null,null,null,null,null,null,null,null,null,null,"Москва"]
[null,null,null,null,null,null,null,null,null,null,null,"Екатеринбург"]
[null,null,null,null,null,null,null,null,null,null,null,"Чебоксары"]
[null,null,null,null,null,null,null,null,null,null,null,"Хабаровск"]
[null,null,null,null,null,null,null,null,null,null,null,"Самара"]
[null,null,null,null,null,null,null,null,null,null,null,"Чебоксары"]
[null,null,null,null,null,null,null,null,null,null,null,"Москва"]
[null,null,null,null,null,null,null,null,null,null,null,"Саранск"]
[null,null,null,null,null,null,null,null,null,null,null,"Калуга"]
[null,null,null,null,null,null,null,null,null,null,null,"Самара"]
[null,null,null,null,null,null,null,null,null,null,null,"Чебоксары"]
[null,null,null,null,null,null,null,null,null,null,null,"Москва"]
[null,null,null,null,null,null,null,null,null,null,null,"Екатеринбург"]
[null,null,null,null,null,null,null,null,null,null,null,"Чебоксары"]
[null,null,null,null,null,null,null,null,null,null,null,"Хабаровск"]
[null,null,null,null,null,null,null,null,null,null,null,"Самара"]
[null,null,null,null,null,null,null,null,null,null,null,"Чебоксары"]
[null,null,null,null,null,null,null,null,null,null,null,"Москва"]
[null,null,null,null,null,null,null,null,null,null,null,"Саранск"]
[null,null,null,null,null,null,null,null,null,null,null,"Калуга"]
[null,null,null,null,null,null,null,null,null,null,null,"Самара"]
[null,null,null,null,null,null,null,null,null,null,null,"Чебоксары"]
[null,null,null,null,null,null,null,null,null,null,null,"Москва"]
[null,null,null,null,null,null,null,null,null,null,null,"Екатеринбург"]
[null,null,null,null,null,null,null,null,null,null,null,"Чебоксары"]
[null,null,null,null,null,null,null,null,null,null,null,"Хабаровск"]
[null,null,null,null,null,null,null,null,null,null,null,"Самара"]
[null,null,null,null,null,null,null,null,null,null,null,"Чебоксары"]
[null,null,null,null,null,null,null,null,null,null,null,"Москва"]
[null,null,null,null,null,null,null,null,null,null,null,"Саранск"]
[null,null,null,null,null,null,null,null,null,null,null,"Калуга"]
[null,null,null,null,null,null,null,null,null,null,null,"Самара"]
[null,null,null,null,null,null,null,null,null,null,null,"Чебоксары"]
[null,null,null,null,null,null,null,null,null,null,null,"Москва"]
[null,null,null,null,null,null,null,null,null,null,null,"Екатеринбург"]
[null,null,null,null,null,null,null,null,null,null,null,"Чебоксары"]
[null,null,null,null,null,null,null,null,null,null,null,"Хабаровск"]
[null,null,null,null,null,null,null,null,null,null,null,"Самара"]
[null,null,null,null,null,null,null,null,null,null,null,"Чебоксары"]
[null,null,null,null,null,null,null,null,null,null,null,"Москва"]
[null,null,null,null,null,null,null,null,null,null,null,"Саранск"]
[null,null,null,null,null,null,null,null,null,null,null,"Калуга"]
[null,null,null,null,null,null,null,null,null,null,null,"Самара"]
[null,null,null,null,null,null,null,null,null,null,null,"Чебоксары"]
[null,null,null,null,null,null,null,null,null,null,null,"Москва"]
[null,null,null,null,null,null,null,null,null,null,null,"Екатеринбург"]
[null,null,null,null,null,null,null,null,null,null,null,"Чебоксары"]
[null,null,null,null,null,null,null,null,null,null,null,"Хабаровск"]
[null,null,null,null,null,null,null,null,null,null,null,"Самара"]
[null,null,null,null,null,null,null,null,null,null,null,"Чебоксары"]
[null,null,null,null,null,null,null,null,null,null,null,"Москва"]
[null,null,null,null,null,null,null,null,null,null,null,"Саранск"]
[null,null,null,null,null,null,null,null,null,null,null,"Калуга"]
[null,null,null,null,null,null,null,null,null,null,null,"Самара"]
[null,null,null,null,null,null,null,null,null,null,null,"Чебоксары"]
[null,null,null,null,null,null,null,null,null,null,null,"Москва"]
[null,null,null,null,null,null,null,null,null,null,null,"Екатеринбург"]
[null,null,null,null,null,null,null,null,null,null,null,"Чебоксары"]
[null,null,null,null,null,null,null,null,null,null,null,"Хабаровск"]
[null,null,null,null,null,null,null,null,null,null,null,"Самара"]
[null,null,null,null,null,null,null,null,null,null,null,"Чебоксары"]

{"sheet":"Сентябрь","index":8,"n_rows":104,"n_cols":15,"rows_kept":104,"cut":false,"hidden":false,"merged":[[1,10,2,10],[1,11,2,11],[0,0,0,11],[0,12,0,13]]}
[{"$f":"TODAY()","v":"2014-01-13"},null,null,null,null,null,null,null,null,null,null,null,"Итоги",null,{"$f":"ROUND(M2*100/SUM(M2:N2),2)/100","v":{"$error":"#DIV/0!"}}]
[null,null,null,null,null,null,null,null,null,null,"Результат","Проблемный город",{"$f":"COUNTIFS(K4:K104,\"+\")","v":0},{"$f":"COUNTIFS(K4:K104,\"-\")","v":0}]
[]
[null,null,null,null,null,null,null,null,null,null,null,"Самара"]
[null,null,null,null,null,null,null,null,null,null,null,"Чебоксары"]
[null,null,null,null,null,null,null,null,null,null,null,"Москва"]
[null,null,null,null,null,null,null,null,null,null,null,"Саранск"]
[null,null,null,null,null,null,null,null,null,null,null,"Калуга"]
[null,null,null,null,null,null,null,null,null,null,null,"Самара"]
[null,null,null,null,null,null,null,null,null,null,null,"Чебоксары"]
[null,null,null,null,null,null,null,null,null,null,null,"Москва"]
[null,null,null,null,null,null,null,null,null,null,null,"Екатеринбург"]
[null,null,null,null,null,null,null,null,null,null,null,"Чебоксары"]
[null,null,null,null,null,null,null,null,null,null,null,"Хабаровск"]
[null,null,null,null,null,null,null,null,null,null,null,"Самара"]
[null,null,null,null,null,null,null,null,null,null,null,"Чебоксары"]
[null,null,null,null,null,null,null,null,null,null,null,"Москва"]
[null,null,null,null,null,null,null,null,null,null,null,"Саранск"]
[null,null,null,null,null,null,null,null,null,null,null,"Калуга"]
[null,null,null,null,null,null,null,null,null,null,null,"Самара"]
[null,null,null,null,null,null,null,null,null,null,null,"Чебоксары"]
[null,null,null,null,null,null,null,null,null,null,null,"Москва"]
[null,null,null,null,null,null,null,null,null,null,null,"Екатеринбург"]
[null,null,null,null,null,null,null,null,null,null,null,"Чебоксары"]
[null,null,null,null,null,null,null,null,null,null,null,"Хабаровск"]
[null,null,null,null,null,null,null,null,null,null,null,"Самара"]
[null,null,null,null,null,null,null,null,null,null,null,"Чебоксары"]
[null,null,null,null,null,null,null,null,null,null,null,"Москва"]
[null,null,null,null,null,null,null,null,null,null,null,"Саранск"]
[null,null,null,null,null,null,null,null,null,null,null,"Калуга"]
[null,null,null,null,null,null,null,null,null,null,null,"Самара"]
[null,null,null,null,null,null,null,null,null,null,null,"Чебоксары"]
[null,null,null,null,null,null,null,null,null,null,null,"Москва"]
[null,null,null,null,null,null,null,null,null,null,null,"Екатеринбург"]
[null,null,null,null,null,null,null,null,null,null,null,"Чебоксары"]
[null,null,null,null,null,null,null,null,null,null,null,"Хабаровск"]
[null,null,null,null,null,null,null,null,null,null,null,"Самара"]
[null,null,null,null,null,null,null,null,null,null,null,"Чебоксары"]
[null,null,null,null,null,null,null,null,null,null,null,"Москва"]
[null,null,null,null,null,null,null,null,null,null,null,"Саранск"]
[null,null,null,null,null,null,null,null,null,null,null,"Калуга"]
[null,null,null,null,null,null,null,null,null,null,null,"Самара"]
[null,null,null,null,null,null,null,null,null,null,null,"Чебоксары"]
[null,null,null,null,null,null,null,null,null,null,null,"Москва"]
[null,null,null,null,null,null,null,null,null,null,null,"Екатеринбург"]
[null,null,null,null,null,null,null,null,null,null,null,"Чебоксары"]
[null,null,null,null,null,null,null,null,null,null,null,"Хабаровск"]
[null,null,null,null,null,null,null,null,null,null,null,"Самара"]
[null,null,null,null,null,null,null,null,null,null,null,"Чебоксары"]
[null,null,null,null,null,null,null,null,null,null,null,"Москва"]
[null,null,null,null,null,null,null,null,null,null,null,"Саранск"]
[null,null,null,null,null,null,null,null,null,null,null,"Калуга"]
[null,null,null,null,null,null,null,null,null,null,null,"Самара"]
[null,null,null,null,null,null,null,null,null,null,null,"Чебоксары"]
[null,null,null,null,null,null,null,null,null,null,null,"Москва"]
[null,null,null,null,null,null,null,null,null,null,null,"Екатеринбург"]
[null,null,null,null,null,null,null,null,null,null,null,"Чебоксары"]
[null,null,null,null,null,null,null,null,null,null,null,"Хабаровск"]
[null,null,null,null,null,null,null,null,null,null,null,"Самара"]
[null,null,null,null,null,null,null,null,null,null,null,"Чебоксары"]
[null,null,null,null,null,null,null,null,null,null,null,"Москва"]
[null,null,null,null,null,null,null,null,null,null,null,"Саранск"]
[null,null,null,null,null,null,null,null,null,null,null,"Калуга"]
[null,null,null,null,null,null,null,null,null,null,null,"Самара"]
[null,null,null,null,null,null,null,null,null,null,null,"Чебоксары"]
[null,null,null,null,null,null,null,null,null,null,null,"Москва"]
[null,null,null,null,null,null,null,null,null,null,null,"Екатеринбург"]
[null,null,null,null,null,null,null,null,null,null,null,"Чебоксары"]
[null,null,null,null,null,null,null,null,null,null,null,"Хабаровск"]
[null,null,null,null,null,null,null,null,null,null,null,"Самара"]
[null,null,null,null,null,null,null,null,null,null,null,"Чебоксары"]
[null,null,null,null,null,null,null,null,null,null,null,"Москва"]
[null,null,null,null,null,null,null,null,null,null,null,"Саранск"]
[null,null,null,null,null,null,null,null,null,null,null,"Калуга"]
[null,null,null,null,null,null,null,null,null,null,null,"Самара"]
[null,null,null,null,null,null,null,null,null,null,null,"Чебоксары"]
[null,null,null,null,null,null,null,null,null,null,null,"Москва"]
[null,null,null,null,null,null,null,null,null,null,null,"Екатеринбург"]
[null,null,null,null,null,null,null,null,null,null,null,"Чебоксары"]
[null,null,null,null,null,null,null,null,null,null,null,"Хабаровск"]
[null,null,null,null,null,null,null,null,null,null,null,"Самара"]
[null,null,null,null,null,null,null,null,null,null,null,"Чебоксары"]
[null,null,null,null,null,null,null,null,null,null,null,"Москва"]
[null,null,null,null,null,null,null,null,null,null,null,"Саранск"]
[null,null,null,null,null,null,null,null,null,null,null,"Калуга"]
[null,null,null,null,null,null,null,null,null,null,null,"Самара"]
[null,null,null,null,null,null,null,null,null,null,null,"Чебоксары"]
[null,null,null,null,null,null,null,null,null,null,null,"Москва"]
[null,null,null,null,null,null,null,null,null,null,null,"Екатеринбург"]
[null,null,null,null,null,null,null,null,null,null,null,"Чебоксары"]
[null,null,null,null,null,null,null,null,null,null,null,"Хабаровск"]
[null,null,null,null,null,null,null,null,null,null,null,"Самара"]
[null,null,null,null,null,null,null,null,null,null,null,"Чебоксары"]
[null,null,null,null,null,null,null,null,null,null,null,"Москва"]
[null,null,null,null,null,null,null,null,null,null,null,"Саранск"]
[null,null,null,null,null,null,null,null,null,null,null,"Калуга"]
[null,null,null,null,null,null,null,null,null,null,null,"Самара"]
[null,null,null,null,null,null,null,null,null,null,null,"Чебоксары"]
[null,null,null,null,null,null,null,null,null,null,null,"Москва"]
[null,null,null,null,null,null,null,null,null,null,null,"Екатеринбург"]
[null,null,null,null,null,null,null,null,null,null,null,"Чебоксары"]
[null,null,null,null,null,null,null,null,null,null,null,"Хабаровск"]
[null,null,null,null,null,null,null,null,null,null,null,"Самара"]
[null,null,null,null,null,null,null,null,null,null,null,"Чебоксары"]

{"sheet":"Октябрь","index":9,"n_rows":104,"n_cols":15,"rows_kept":104,"cut":false,"hidden":false,"merged":[[1,10,2,10],[1,11,2,11],[0,0,0,11],[0,12,0,13]]}
[{"$f":"TODAY()","v":"2014-01-13"},null,null,null,null,null,null,null,null,null,null,null,"Итоги",null,{"$f":"ROUND(M2*100/SUM(M2:N2),2)/100","v":{"$error":"#DIV/0!"}}]
[null,null,null,null,null,null,null,null,null,null,"Результат","Проблемный город",{"$f":"COUNTIFS(K4:K104,\"+\")","v":0},{"$f":"COUNTIFS(K4:K104,\"-\")","v":0}]
[]
[null,null,null,null,null,null,null,null,null,null,null,"Самара"]
[null,null,null,null,null,null,null,null,null,null,null,"Чебоксары"]
[null,null,null,null,null,null,null,null,null,null,null,"Москва"]
[null,null,null,null,null,null,null,null,null,null,null,"Саранск"]
[null,null,null,null,null,null,null,null,null,null,null,"Калуга"]
[null,null,null,null,null,null,null,null,null,null,null,"Самара"]
[null,null,null,null,null,null,null,null,null,null,null,"Чебоксары"]
[null,null,null,null,null,null,null,null,null,null,null,"Москва"]
[null,null,null,null,null,null,null,null,null,null,null,"Екатеринбург"]
[null,null,null,null,null,null,null,null,null,null,null,"Чебоксары"]
[null,null,null,null,null,null,null,null,null,null,null,"Хабаровск"]
[null,null,null,null,null,null,null,null,null,null,null,"Самара"]
[null,null,null,null,null,null,null,null,null,null,null,"Чебоксары"]
[null,null,null,null,null,null,null,null,null,null,null,"Москва"]
[null,null,null,null,null,null,null,null,null,null,null,"Саранск"]
[null,null,null,null,null,null,null,null,null,null,null,"Калуга"]
[null,null,null,null,null,null,null,null,null,null,null,"Самара"]
[null,null,null,null,null,null,null,null,null,null,null,"Чебоксары"]
[null,null,null,null,null,null,null,null,null,null,null,"Москва"]
[null,null,null,null,null,null,null,null,null,null,null,"Екатеринбург"]
[null,null,null,null,null,null,null,null,null,null,null,"Чебоксары"]
[null,null,null,null,null,null,null,null,null,null,null,"Хабаровск"]
[null,null,null,null,null,null,null,null,null,null,null,"Самара"]
[null,null,null,null,null,null,null,null,null,null,null,"Чебоксары"]
[null,null,null,null,null,null,null,null,null,null,null,"Москва"]
[null,null,null,null,null,null,null,null,null,null,null,"Саранск"]
[null,null,null,null,null,null,null,null,null,null,null,"Калуга"]
[null,null,null,null,null,null,null,null,null,null,null,"Самара"]
[null,null,null,null,null,null,null,null,null,null,null,"Чебоксары"]
[null,null,null,null,null,null,null,null,null,null,null,"Москва"]
[null,null,null,null,null,null,null,null,null,null,null,"Екатеринбург"]
[null,null,null,null,null,null,null,null,null,null,null,"Чебоксары"]
[null,null,null,null,null,null,null,null,null,null,null,"Хабаровск"]
[null,null,null,null,null,null,null,null,null,null,null,"Самара"]
[null,null,null,null,null,null,null,null,null,null,null,"Чебоксары"]
[null,null,null,null,null,null,null,null,null,null,null,"Москва"]
[null,null,null,null,null,null,null,null,null,null,null,"Саранск"]
[null,null,null,null,null,null,null,null,null,null,null,"Калуга"]
[null,null,null,null,null,null,null,null,null,null,null,"Самара"]
[null,null,null,null,null,null,null,null,null,null,null,"Чебоксары"]
[null,null,null,null,null,null,null,null,null,null,null,"Москва"]
[null,null,null,null,null,null,null,null,null,null,null,"Екатеринбург"]
[null,null,null,null,null,null,null,null,null,null,null,"Чебоксары"]
[null,null,null,null,null,null,null,null,null,null,null,"Хабаровск"]
[null,null,null,null,null,null,null,null,null,null,null,"Самара"]
[null,null,null,null,null,null,null,null,null,null,null,"Чебоксары"]
[null,null,null,null,null,null,null,null,null,null,null,"Москва"]
[null,null,null,null,null,null,null,null,null,null,null,"Саранск"]
[null,null,null,null,null,null,null,null,null,null,null,"Калуга"]
[null,null,null,null,null,null,null,null,null,null,null,"Самара"]
[null,null,null,null,null,null,null,null,null,null,null,"Чебоксары"]
[null,null,null,null,null,null,null,null,null,null,null,"Москва"]
[null,null,null,null,null,null,null,null,null,null,null,"Екатеринбург"]
[null,null,null,null,null,null,null,null,null,null,null,"Чебоксары"]
[null,null,null,null,null,null,null,null,null,null,null,"Хабаровск"]
[null,null,null,null,null,null,null,null,null,null,null,"Самара"]
[null,null,null,null,null,null,null,null,null,null,null,"Чебоксары"]
[null,null,null,null,null,null,null,null,null,null,null,"Москва"]
[null,null,null,null,null,null,null,null,null,null,null,"Саранск"]
[null,null,null,null,null,null,null,null,null,null,null,"Калуга"]
[null,null,null,null,null,null,null,null,null,null,null,"Самара"]
[null,null,null,null,null,null,null,null,null,null,null,"Чебоксары"]
[null,null,null,null,null,null,null,null,null,null,null,"Москва"]
[null,null,null,null,null,null,null,null,null,null,null,"Екатеринбург"]
[null,null,null,null,null,null,null,null,null,null,null,"Чебоксары"]
[null,null,null,null,null,null,null,null,null,null,null,"Хабаровск"]
[null,null,null,null,null,null,null,null,null,null,null,"Самара"]
[null,null,null,null,null,null,null,null,null,null,null,"Чебоксары"]
[null,null,null,null,null,null,null,null,null,null,null,"Москва"]
[null,null,null,null,null,null,null,null,null,null,null,"Саранск"]
[null,null,null,null,null,null,null,null,null,null,null,"Калуга"]
[null,null,null,null,null,null,null,null,null,null,null,"Самара"]
[null,null,null,null,null,null,null,null,null,null,null,"Чебоксары"]
[null,null,null,null,null,null,null,null,null,null,null,"Москва"]
[null,null,null,null,null,null,null,null,null,null,null,"Екатеринбург"]
[null,null,null,null,null,null,null,null,null,null,null,"Чебоксары"]
[null,null,null,null,null,null,null,null,null,null,null,"Хабаровск"]
[null,null,null,null,null,null,null,null,null,null,null,"Самара"]
[null,null,null,null,null,null,null,null,null,null,null,"Чебоксары"]
[null,null,null,null,null,null,null,null,null,null,null,"Москва"]
[null,null,null,null,null,null,null,null,null,null,null,"Саранск"]
[null,null,null,null,null,null,null,null,null,null,null,"Калуга"]
[null,null,null,null,null,null,null,null,null,null,null,"Самара"]
[null,null,null,null,null,null,null,null,null,null,null,"Чебоксары"]
[null,null,null,null,null,null,null,null,null,null,null,"Москва"]
[null,null,null,null,null,null,null,null,null,null,null,"Екатеринбург"]
[null,null,null,null,null,null,null,null,null,null,null,"Чебоксары"]
[null,null,null,null,null,null,null,null,null,null,null,"Хабаровск"]
[null,null,null,null,null,null,null,null,null,null,null,"Самара"]
[null,null,null,null,null,null,null,null,null,null,null,"Чебоксары"]
[null,null,null,null,null,null,null,null,null,null,null,"Москва"]
[null,null,null,null,null,null,null,null,null,null,null,"Саранск"]
[null,null,null,null,null,null,null,null,null,null,null,"Калуга"]
[null,null,null,null,null,null,null,null,null,null,null,"Самара"]
[null,null,null,null,null,null,null,null,null,null,null,"Чебоксары"]
[null,null,null,null,null,null,null,null,null,null,null,"Москва"]
[null,null,null,null,null,null,null,null,null,null,null,"Екатеринбург"]
[null,null,null,null,null,null,null,null,null,null,null,"Чебоксары"]
[null,null,null,null,null,null,null,null,null,null,null,"Хабаровск"]
[null,null,null,null,null,null,null,null,null,null,null,"Самара"]
[null,null,null,null,null,null,null,null,null,null,null,"Чебоксары"]

{"sheet":"Ноябрь","index":10,"n_rows":104,"n_cols":15,"rows_kept":104,"cut":false,"hidden":false,"merged":[[1,10,2,10],[1,11,2,11],[0,0,0,11],[0,12,0,13]]}
[{"$f":"TODAY()","v":"2014-01-13"},null,null,null,null,null,null,null,null,null,null,null,"Итоги",null,{"$f":"ROUND(M2*100/SUM(M2:N2),2)/100","v":{"$error":"#DIV/0!"}}]
[null,null,null,null,null,null,null,null,null,null,"Результат","Проблемный город",{"$f":"COUNTIFS(K4:K104,\"+\")","v":0},{"$f":"COUNTIFS(K4:K104,\"-\")","v":0}]
[]
[null,null,null,null,null,null,null,null,null,null,null,"Самара"]
[null,null,null,null,null,null,null,null,null,null,null,"Чебоксары"]
[null,null,null,null,null,null,null,null,null,null,null,"Москва"]
[null,null,null,null,null,null,null,null,null,null,null,"Саранск"]
[null,null,null,null,null,null,null,null,null,null,null,"Калуга"]
[null,null,null,null,null,null,null,null,null,null,null,"Самара"]
[null,null,null,null,null,null,null,null,null,null,null,"Чебоксары"]
[null,null,null,null,null,null,null,null,null,null,null,"Москва"]
[null,null,null,null,null,null,null,null,null,null,null,"Екатеринбург"]
[null,null,null,null,null,null,null,null,null,null,null,"Чебоксары"]
[null,null,null,null,null,null,null,null,null,null,null,"Хабаровск"]
[null,null,null,null,null,null,null,null,null,null,null,"Самара"]
[null,null,null,null,null,null,null,null,null,null,null,"Чебоксары"]
[null,null,null,null,null,null,null,null,null,null,null,"Москва"]
[null,null,null,null,null,null,null,null,null,null,null,"Саранск"]
[null,null,null,null,null,null,null,null,null,null,null,"Калуга"]
[null,null,null,null,null,null,null,null,null,null,null,"Самара"]
[null,null,null,null,null,null,null,null,null,null,null,"Чебоксары"]
[null,null,null,null,null,null,null,null,null,null,null,"Москва"]
[null,null,null,null,null,null,null,null,null,null,null,"Екатеринбург"]
[null,null,null,null,null,null,null,null,null,null,null,"Чебоксары"]
[null,null,null,null,null,null,null,null,null,null,null,"Хабаровск"]
[null,null,null,null,null,null,null,null,null,null,null,"Самара"]
[null,null,null,null,null,null,null,null,null,null,null,"Чебоксары"]
[null,null,null,null,null,null,null,null,null,null,null,"Москва"]
[null,null,null,null,null,null,null,null,null,null,null,"Саранск"]
[null,null,null,null,null,null,null,null,null,null,null,"Калуга"]
[null,null,null,null,null,null,null,null,null,null,null,"Самара"]
[null,null,null,null,null,null,null,null,null,null,null,"Чебоксары"]
[null,null,null,null,null,null,null,null,null,null,null,"Москва"]
[null,null,null,null,null,null,null,null,null,null,null,"Екатеринбург"]
[null,null,null,null,null,null,null,null,null,null,null,"Чебоксары"]
[null,null,null,null,null,null,null,null,null,null,null,"Хабаровск"]
[null,null,null,null,null,null,null,null,null,null,null,"Самара"]
[null,null,null,null,null,null,null,null,null,null,null,"Чебоксары"]
[null,null,null,null,null,null,null,null,null,null,null,"Москва"]
[null,null,null,null,null,null,null,null,null,null,null,"Саранск"]
[null,null,null,null,null,null,null,null,null,null,null,"Калуга"]
[null,null,null,null,null,null,null,null,null,null,null,"Самара"]
[null,null,null,null,null,null,null,null,null,null,null,"Чебоксары"]
[null,null,null,null,null,null,null,null,null,null,null,"Москва"]
[null,null,null,null,null,null,null,null,null,null,null,"Екатеринбург"]
[null,null,null,null,null,null,null,null,null,null,null,"Чебоксары"]
[null,null,null,null,null,null,null,null,null,null,null,"Хабаровск"]
[null,null,null,null,null,null,null,null,null,null,null,"Самара"]
[null,null,null,null,null,null,null,null,null,null,null,"Чебоксары"]
[null,null,null,null,null,null,null,null,null,null,null,"Москва"]
[null,null,null,null,null,null,null,null,null,null,null,"Саранск"]
[null,null,null,null,null,null,null,null,null,null,null,"Калуга"]
[null,null,null,null,null,null,null,null,null,null,null,"Самара"]
[null,null,null,null,null,null,null,null,null,null,null,"Чебоксары"]
[null,null,null,null,null,null,null,null,null,null,null,"Москва"]
[null,null,null,null,null,null,null,null,null,null,null,"Екатеринбург"]
[null,null,null,null,null,null,null,null,null,null,null,"Чебоксары"]
[null,null,null,null,null,null,null,null,null,null,null,"Хабаровск"]
[null,null,null,null,null,null,null,null,null,null,null,"Самара"]
[null,null,null,null,null,null,null,null,null,null,null,"Чебоксары"]
[null,null,null,null,null,null,null,null,null,null,null,"Москва"]
[null,null,null,null,null,null,null,null,null,null,null,"Саранск"]
[null,null,null,null,null,null,null,null,null,null,null,"Калуга"]
[null,null,null,null,null,null,null,null,null,null,null,"Самара"]
[null,null,null,null,null,null,null,null,null,null,null,"Чебоксары"]
[null,null,null,null,null,null,null,null,null,null,null,"Москва"]
[null,null,null,null,null,null,null,null,null,null,null,"Екатеринбург"]
[null,null,null,null,null,null,null,null,null,null,null,"Чебоксары"]
[null,null,null,null,null,null,null,null,null,null,null,"Хабаровск"]
[null,null,null,null,null,null,null,null,null,null,null,"Самара"]
[null,null,null,null,null,null,null,null,null,null,null,"Чебоксары"]
[null,null,null,null,null,null,null,null,null,null,null,"Москва"]
[null,null,null,null,null,null,null,null,null,null,null,"Саранск"]
[null,null,null,null,null,null,null,null,null,null,null,"Калуга"]
[null,null,null,null,null,null,null,null,null,null,null,"Самара"]
[null,null,null,null,null,null,null,null,null,null,null,"Чебоксары"]
[null,null,null,null,null,null,null,null,null,null,null,"Москва"]
[null,null,null,null,null,null,null,null,null,null,null,"Екатеринбург"]
[null,null,null,null,null,null,null,null,null,null,null,"Чебоксары"]
[null,null,null,null,null,null,null,null,null,null,null,"Хабаровск"]
[null,null,null,null,null,null,null,null,null,null,null,"Самара"]
[null,null,null,null,null,null,null,null,null,null,null,"Чебоксары"]
[null,null,null,null,null,null,null,null,null,null,null,"Москва"]
[null,null,null,null,null,null,null,null,null,null,null,"Саранск"]
[null,null,null,null,null,null,null,null,null,null,null,"Калуга"]
[null,null,null,null,null,null,null,null,null,null,null,"Самара"]
[null,null,null,null,null,null,null,null,null,null,null,"Чебоксары"]
[null,null,null,null,null,null,null,null,null,null,null,"Москва"]
[null,null,null,null,null,null,null,null,null,null,null,"Екатеринбург"]
[null,null,null,null,null,null,null,null,null,null,null,"Чебоксары"]
[null,null,null,null,null,null,null,null,null,null,null,"Хабаровск"]
[null,null,null,null,null,null,null,null,null,null,null,"Самара"]
[null,null,null,null,null,null,null,null,null,null,null,"Чебоксары"]
[null,null,null,null,null,null,null,null,null,null,null,"Москва"]
[null,null,null,null,null,null,null,null,null,null,null,"Саранск"]
[null,null,null,null,null,null,null,null,null,null,null,"Калуга"]
[null,null,null,null,null,null,null,null,null,null,null,"Самара"]
[null,null,null,null,null,null,null,null,null,null,null,"Чебоксары"]
[null,null,null,null,null,null,null,null,null,null,null,"Москва"]
[null,null,null,null,null,null,null,null,null,null,null,"Екатеринбург"]
[null,null,null,null,null,null,null,null,null,null,null,"Чебоксары"]
[null,null,null,null,null,null,null,null,null,null,null,"Хабаровск"]
[null,null,null,null,null,null,null,null,null,null,null,"Самара"]
[null,null,null,null,null,null,null,null,null,null,null,"Чебоксары"]

{"sheet":"Итог за Ноябрь","index":11,"n_rows":18,"n_cols":12,"rows_kept":18,"cut":false,"hidden":false,"merged":[]}
["Проблемный город","Итог",null,null,null,null,null,null,null,null,"Результат","Итог"]
["(пусто)",null,null,null,null,null,null,null,null,null,"(пусто)"]
["Общий итог",null,null,null,null,null,null,null,null,null,"Общий итог"]
[]
[]
[]
[]
[]
[]
[]
[]
[]
[]
[]
[]
[null,null,"Проблемный город","Итог"]
[null,null,"(пусто)"]
[null,null,"Общий итог"]

{"sheet":"Декабрь","index":12,"n_rows":104,"n_cols":15,"rows_kept":104,"cut":false,"hidden":false,"merged":[[1,10,2,10],[1,11,2,11],[0,0,0,11],[0,12,0,13]]}
[{"$f":"TODAY()","v":"2014-01-13"},null,null,null,null,null,null,null,null,null,null,null,"Итоги",null,{"$f":"ROUND(M2*100/SUM(M2:N2),2)/100","v":0.50509999999999999}]
[null,null,null,null,null,null,null,null,null,null,"Результат","Проблемный город",{"$f":"COUNTIFS(K4:K104,\"+\")","v":50},{"$f":"COUNTIFS(K4:K104,\"-\")","v":49}]
[]
[null,null,null,null,null,null,null,null,null,null,"-","Самара"]
[null,null,null,null,null,null,null,null,null,null,"-","Чебоксары"]
[null,null,null,null,null,null,null,null,null,null,"+","Москва"]
[null,null,null,null,null,null,null,null,null,null,"-","Саранск"]
[null,null,null,null,null,null,null,null,null,null,"+","Калуга"]
[null,null,null,null,null,null,null,null,null,null,"-","Самара"]
[null,null,null,null,null,null,null,null,null,null,"+","Чебоксары"]
[null,null,null,null,null,null,null,null,null,null,"+","Москва"]
[null,null,null,null,null,null,null,null,null,null,"+","Екатеринбург"]
[null,null,null,null,null,null,null,null,null,null,"+","Чебоксары"]
[null,null,null,null,null,null,null,null,null,null,"+","Хабаровск"]
[null,null,null,null,null,null,null,null,null,null,"+","Самара"]
[null,null,null,null,null,null,null,null,null,null,"+","Чебоксары"]
[null,null,null,null,null,null,null,null,null,null,"+","Москва"]
[null,null,null,null,null,null,null,null,null,null,"+","Саранск"]
[null,null,null,null,null,null,null,null,null,null,"-","Калуга"]
[null,null,null,null,null,null,null,null,null,null,"-","Самара"]
[null,null,null,null,null,null,null,null,null,null,"-","Чебоксары"]
[null,null,null,null,null,null,null,null,null,null,"-","Москва"]
[null,null,null,null,null,null,null,null,null,null,"+","Екатеринбург"]
[null,null,null,null,null,null,null,null,null,null,"-","Чебоксары"]
[null,null,null,null,null,null,null,null,null,null,"-","Хабаровск"]
[null,null,null,null,null,null,null,null,null,null,"-","Самара"]
[null,null,null,null,null,null,null,null,null,null,"+","Чебоксары"]
[null,null,null,null,null,null,null,null,null,null,"+","Москва"]
[null,null,null,null,null,null,null,null,null,null,"+","Саранск"]
[null,null,null,null,null,null,null,null,null,null,"+","Калуга"]
[null,null,null,null,null,null,null,null,null,null,"+","Самара"]
[null,null,null,null,null,null,null,null,null,null,"+","Чебоксары"]
[null,null,null,null,null,null,null,null,null,null,"+","Москва"]
[null,null,null,null,null,null,null,null,null,null,"-","Екатеринбург"]
[null,null,null,null,null,null,null,null,null,null,"-","Чебоксары"]
[null,null,null,null,null,null,null,null,null,null,"-","Хабаровск"]
[null,null,null,null,null,null,null,null,null,null,"-","Самара"]
[null,null,null,null,null,null,null,null,null,null,"-","Чебоксары"]
[null,null,null,null,null,null,null,null,null,null,"-","Москва"]
[null,null,null,null,null,null,null,null,null,null,"-","Саранск"]
[null,null,null,null,null,null,null,null,null,null,"-","Калуга"]
[null,null,null,null,null,null,null,null,null,null,"+","Самара"]
[null,null,null,null,null,null,null,null,null,null,"+","Чебоксары"]
[null,null,null,null,null,null,null,null,null,null,"+","Москва"]
[null,null,null,null,null,null,null,null,null,null,"+","Екатеринбург"]
[null,null,null,null,null,null,null,null,null,null,"+","Чебоксары"]
[null,null,null,null,null,null,null,null,null,null,"+","Хабаровск"]
[null,null,null,null,null,null,null,null,null,null,"+","Самара"]
[null,null,null,null,null,null,null,null,null,null,"-","Чебоксары"]
[null,null,null,null,null,null,null,null,null,null,"-","Москва"]
[null,null,null,null,null,null,null,null,null,null,"-","Саранск"]
[null,null,null,null,null,null,null,null,null,null,"-","Калуга"]
[null,null,null,null,null,null,null,null,null,null,"-","Самара"]
[null,null,null,null,null,null,null,null,null,null,"+","Чебоксары"]
[null,null,null,null,null,null,null,null,null,null,"-","Москва"]
[null,null,null,null,null,null,null,null,null,null,"-","Екатеринбург"]
[null,null,null,null,null,null,null,null,null,null,"+","Чебоксары"]
[null,null,null,null,null,null,null,null,null,null,"+","Хабаровск"]
[null,null,null,null,null,null,null,null,null,null,"+","Самара"]
[null,null,null,null,null,null,null,null,null,null,"+","Чебоксары"]
[null,null,null,null,null,null,null,null,null,null,"+","Москва"]
[null,null,null,null,null,null,null,null,null,null,"+","Саранск"]
[null,null,null,null,null,null,null,null,null,null,"+","Калуга"]
[null,null,null,null,null,null,null,null,null,null,"-","Самара"]
[null,null,null,null,null,null,null,null,null,null,"-","Чебоксары"]
[null,null,null,null,null,null,null,null,null,null,"-","Москва"]
[null,null,null,null,null,null,null,null,null,null,"-","Екатеринбург"]
[null,null,null,null,null,null,null,null,null,null,"-","Чебоксары"]
[null,null,null,null,null,null,null,null,null,null,"-","Хабаровск"]
[null,null,null,null,null,null,null,null,null,null,"-","Самара"]
[null,null,null,null,null,null,null,null,null,null,"-","Чебоксары"]
[null,null,null,null,null,null,null,null,null,null,"+","Москва"]
[null,null,null,null,null,null,null,null,null,null,"+","Саранск"]
[null,null,null,null,null,null,null,null,null,null,"+","Калуга"]
[null,null,null,null,null,null,null,null,null,null,"+","Самара"]
[null,null,null,null,null,null,null,null,null,null,"+","Чебоксары"]
[null,null,null,null,null,null,null,null,null,null,"+","Москва"]
[null,null,null,null,null,null,null,null,null,null,"+","Екатеринбург"]
[null,null,null,null,null,null,null,null,null,null,"-","Чебоксары"]
[null,null,null,null,null,null,null,null,null,null,"-","Хабаровск"]
[null,null,null,null,null,null,null,null,null,null,"-","Самара"]
[null,null,null,null,null,null,null,null,null,null,"+","Чебоксары"]
[null,null,null,null,null,null,null,null,null,null,"-","Москва"]
[null,null,null,null,null,null,null,null,null,null,"-","Саранск"]
[null,null,null,null,null,null,null,null,null,null,"-","Калуга"]
[null,null,null,null,null,null,null,null,null,null,"-","Самара"]
[null,null,null,null,null,null,null,null,null,null,"+","Чебоксары"]
[null,null,null,null,null,null,null,null,null,null,null,"Москва"]
[null,null,null,null,null,null,null,null,null,null,null,"Екатеринбург"]
[null,null,null,null,null,null,null,null,null,null,"+","Чебоксары"]
[null,null,null,null,null,null,null,null,null,null,"+","Хабаровск"]
[null,null,null,null,null,null,null,null,null,null,"+","Самара"]
[null,null,null,null,null,null,null,null,null,null,"+","Чебоксары"]
[null,null,null,null,null,null,null,null,null,null,"-","Москва"]
[null,null,null,null,null,null,null,null,null,null,"-","Саранск"]
[null,null,null,null,null,null,null,null,null,null,"-","Калуга"]
[null,null,null,null,null,null,null,null,null,null,"-","Самара"]
[null,null,null,null,null,null,null,null,null,null,"-","Чебоксары"]
[null,null,null,null,null,null,null,null,null,null,"-","Москва"]
[null,null,null,null,null,null,null,null,null,null,"-","Екатеринбург"]
[null,null,null,null,null,null,null,null,null,null,"-","Чебоксары"]
[null,null,null,null,null,null,null,null,null,null,"+","Хабаровск"]
[null,null,null,null,null,null,null,null,null,null,"+","Самара"]
[null,null,null,null,null,null,null,null,null,null,"+","Чебоксары"]

{"sheet":"Итог за Декабрь","index":13,"n_rows":18,"n_cols":12,"rows_kept":18,"cut":false,"hidden":false,"merged":[]}
["Проблемный город","Итог",null,null,null,null,null,null,null,null,"Результат","Итог"]
["Екатеринбург",9,null,null,null,null,null,null,null,null,"-",49]
["Калуга",9,null,null,null,null,null,null,null,null,"+",50]
["Москва",18,null,null,null,null,null,null,null,null,"(пусто)"]
["Самара",19,null,null,null,null,null,null,null,null,"Общий итог",99]
["Саранск",9]
["Хабаровск",9]
["Чебоксары",28]
["(пусто)"]
["Общий итог",101]
[]
[]
[]
[]
[]
[null,null,"Проблемный город","Итог"]
[null,null,"Чебоксары",28]
[null,null,"Общий итог",28]

{"sheet":"Итог за год","index":14,"n_rows":9,"n_cols":2,"rows_kept":9,"cut":false,"hidden":false,"merged":[]}
[]
["Самара",159]
["Чебоксары",229]
["Москва",151]
["Саранск",77]
["Калуга",76]
["Екатеринбург",73]
["Хабаровск",71]
["Итого:",836]